fUSD/lending_fUSD_20250106
["ID","MTS","AMOUNT","RATE_DAILY","PERIOD"]
[347839515,1736146262134,-500.0,0.00011403,2]
[347839516,1736146262143,-1107.86,0.00011403,2]
[347839517,1736146262152,-526.06,0.00011403,2]
[347839518,1736146262162,-4758.37,0.00011403,2]
[347839519,1736146262171,-500.0,0.00011403,2]
[347839520,1736146262180,-556.63,0.00011403,2]
[347839521,1736146262189,-500.0,0.00011403,2]
[347839522,1736146262199,-1493.4,0.00011403,2]
[347839523,1736146262208,-500.0,0.00011403,2]
[347839524,1736146262217,-2244.15,0.00011403,2]
[347839525,1736146262225,-632.11,0.00011403,2]
[347839526,1736146262235,-500.0,0.00011403,2]
[347839527,1736146262244,-500.0,0.00011403,2]
[347839528,1736146262253,-1083.83,0.00011403,2]
[347839529,1736146262263,-1023.4,0.00011403,2]
[347839530,1736146262272,-152.95,0.00011456,2]
[347839531,1736146262281,-700.0,0.000115,4]
[347839532,1736146262292,-1657.33,0.00011503,2]
[347839533,1736146262302,-704.79,0.00011503,2]
[347839534,1736146262311,-500.0,0.00011504,2]
[347839535,1736146262320,-1019.75,0.00011504,2]
[347839536,1736146262329,-500.0,0.00011504,2]
[347839537,1736146262338,-500.0,0.00011504,2]
[347839538,1736146262348,-500.0,0.00011504,2]
[347839539,1736146262357,-1544.02,0.00011504,2]
[347839540,1736146262366,-500.0,0.00011504,2]
[347839541,1736146262376,-500.0,0.00011504,2]
[347839542,1736146262385,-500.0,0.00011504,2]
[347839543,1736146262395,-500.0,0.00011504,2]
[347839544,1736146262404,-500.0,0.00011504,2]
[347839545,1736146262413,-500.0,0.00011504,2]
[347839546,1736146262422,-437.83,0.00011504,2]
[347839547,1736146262432,-500.0,0.00011504,2]
[347839548,1736146262442,-754.58,0.00011504,2]
[347839549,1736146262451,-500.0,0.00011504,2]
[347839550,1736146262461,-836.56,0.00011504,2]
[347839551,1736146262470,-1621.684072,0.00011504,2]
[347839552,1736146262479,-500.0,0.00011504,2]
[347839553,1736146262488,-500.0,0.00011504,2]
[347839554,1736146262497,-500.0,0.00011504,2]
[347839555,1736146262507,-156.428393,0.00011504,2]
[347839556,1736146262516,-500.0,0.00011504,2]
[347839557,1736146262526,-500.0,0.00011504,2]
[347839558,1736146262536,-1758.16002,0.00011504,2]
[347839559,1736146262548,-2716.93,0.00011504,2]
[347839560,1736146262557,-729.04,0.00011504,2]
[347839561,1736146262567,-500.0,0.00011504,2]
[347839562,1736146262576,-500.0,0.00011504,2]
[347839563,1736146262585,-500.0,0.00011504,2]
[347839564,1736146262594,-500.0,0.00011504,2]
[347839565,1736146262777,-509.36,0.00011504,2]
[347839566,1736146262787,-500.0,0.00011504,2]
[347839567,1736146262799,-500.0,0.00011504,2]
[347839568,1736146262808,-500.0,0.00011504,2]
[347839569,1736146262819,-500.0,0.00011504,2]
[347839570,1736146262828,-500.0,0.00011504,2]
[347839571,1736146262837,-500.0,0.00011504,2]
[347839572,1736146262847,-517.7042885,0.00011504,2]
[347839573,1736146262857,-500.0,0.00011504,2]
[347839574,1736146262867,-261.86279089,0.00011504,2]
[347839575,1736146262876,-500.0,0.00011504,2]
[347839576,1736146262886,-500.0,0.00011504,2]
[347839577,1736146262895,-500.0,0.00011504,2]
[347839578,1736146262905,-500.0,0.00011504,2]
[347839579,1736146262913,-500.0,0.00011504,2]
[347839580,1736146262922,-195.80841347,0.00011504,2]
[347839581,1736146262932,-500.0,0.00011504,2]
[347839582,1736146262942,-1369.64,0.00011504,2]
[347839583,1736146262951,-500.0,0.00011504,2]
[347839584,1736146262960,-500.0,0.00011504,2]
[347839585,1736146262969,-500.0,0.00011504,2]
[347839586,1736146262979,-500.0,0.00011504,2]
[347839587,1736146262987,-500.0,0.00011504,2]
[347839588,1736146262996,-1238.2,0.00011504,2]
[347839589,1736146263006,-2225.72,0.00011504,2]
[347839590,1736146263015,-500.0,0.00011504,2]
[347839591,1736146263025,-500.0,0.00011504,2]
[347839592,1736146263034,-561.09,0.00011504,2]
[347839593,1736146263044,-845.21,0.00011504,2]
[347839594,1736146263054,-2383.62,0.00011504,2]
[347839595,1736146263063,-500.0,0.00011504,2]
[347839596,1736146263072,-500.0,0.00011504,2]
[347839597,1736146263081,-500.0,0.00011504,2]
[347839598,1736146263090,-500.0,0.00011504,2]
[347839599,1736146263099,-556.23,0.00011504,2]
[347839600,1736146263109,-500.0,0.00011504,2]
[347839601,1736146263118,-5872.59,0.00011504,2]
[347839602,1736146263128,-589.06,0.00011504,2]
[347839603,1736146263138,-500.0,0.00011504,2]
[347839604,1736146263147,-500.0,0.00011504,2]
[347839605,1736146263157,-673.64,0.00011504,2]
[347839606,1736146263167,-500.0,0.00011504,2]
[347839607,1736146263177,-500.0,0.00011504,2]
[347839608,1736146263187,-500.0,0.00011504,2]
[347839609,1736146263197,-500.0,0.00011504,2]
[347839610,1736146263206,-500.0,0.00011504,2]
[347839611,1736146263215,-500.0,0.00011504,2]
[347839612,1736146263225,-337.6,0.00011504,2]
[347839613,1736146263235,-500.0,0.00011504,2]
[347839614,1736146263245,-500.0,0.00011504,2]
[347839615,1736146263255,-500.0,0.00011504,2]
[347839616,1736146263265,-500.0,0.00011504,2]
[347839617,1736146263274,-500.0,0.00011504,2]
[347839618,1736146263284,-500.0,0.00011504,2]
[347839619,1736146263295,-500.0,0.00011504,2]
[347839620,1736146263305,-500.0,0.00011504,2]
[347839621,1736146263316,-2620.63,0.00011504,2]
[347839622,1736146263325,-515.0,0.00011504,2]
[347839623,1736146263336,-1465.5,0.00011504,2]
[347839624,1736146263345,-500.0,0.00011504,2]
[347839625,1736146263355,-500.0,0.00011504,2]
[347839626,1736146263365,-502.62,0.00011504,2]
[347839627,1736146263375,-500.0,0.00011504,2]
[347839628,1736146263385,-2213.07,0.00011504,2]
[347839629,1736146263395,-885.5,0.00011504,2]
[347839630,1736146263405,-500.0,0.00011504,2]
[347839631,1736146263415,-500.0,0.00011504,2]
[347839632,1736146263424,-3079.1,0.00011504,2]
[347839633,1736146263434,-500.0,0.00011504,2]
[347839634,1736146263444,-2813.28,0.00011504,2]
[347839635,1736146263454,-500.0,0.00011504,2]
[347839636,1736146263464,-500.0,0.00011504,2]
[347839637,1736146263473,-2437.82,0.00011504,2]
[347839638,1736146263483,-1353.21,0.00011504,2]
[347839639,1736146263492,-500.0,0.00011504,2]
[347839640,1736146263502,-500.0,0.00011504,2]
[347839641,1736146263512,-500.0,0.00011504,2]
[347839642,1736146263521,-500.0,0.00011504,2]
[347839643,1736146263531,-500.0,0.00011504,2]
[347839644,1736146263541,-1394.0,0.00011504,2]
[347839645,1736146263551,-416.2,0.00011504,2]
[347839646,1736146263561,-950.57,0.00011504,2]
[347839647,1736146263571,-500.0,0.00011504,2]
[347839648,1736146263581,-500.0,0.00011504,2]
[347839649,1736146263591,-614.5,0.00011504,2]
[347839650,1736146263600,-589.55,0.00011504,2]
[347839651,1736146263610,-1036.35,0.00011505,2]
[347839652,1736146263619,-1081.26,0.00011505,2]
[347839653,1736146263629,-2048.23,0.00011505,2]
[347839654,1736146263639,-957.56,0.00011505,2]
[347839655,1736146263649,-1278.88,0.00011505,2]
[347839656,1736146263658,-644.36,0.00011505,2]
[347839657,1736146263668,-1260.55,0.00011505,2]
[347839658,1736146263677,-1543.55,0.00011505,2]
[347839659,1736146263687,-731.83,0.00011505,2]
[347839660,1736146263697,-1340.36,0.00011505,2]
[347839661,1736146263706,-1187.99,0.00011505,2]
[347839662,1736146263716,-2277.14,0.00011505,2]
[347839663,1736146263725,-1121.46,0.00011505,2]
[347839664,1736146263734,-815.01,0.00011505,2]
[347839665,1736146263744,-500.0,0.00011506,2]
[347839666,1736146263753,-576.01,0.00011506,2]
[347839667,1736146263763,-500.0,0.00011506,2]
[347839668,1736146263772,-500.0,0.00011506,2]
[347839669,1736146263785,-500.0,0.00011506,2]
[347839670,1736146263795,-768.67,0.00011506,2]
[347839671,1736146263804,-569.39,0.00011506,2]
[347839672,1736146263814,-700.11,0.00011506,2]
[347839673,1736146263824,-785.52,0.00011506,2]
[347839674,1736146263834,-500.0,0.00011506,2]
[347839675,1736146263843,-500.0,0.00011506,2]
[347839676,1736146263853,-500.0,0.00011506,2]
[347839677,1736146263862,-500.0,0.00011506,2]
[347839678,1736146263872,-500.0,0.00011506,2]
[347839679,1736146263881,-672.37,0.00011506,2]
[347839680,1736146263891,-500.0,0.00011506,2]
[347839681,1736146263900,-500.0,0.00011506,2]
[347839682,1736146263910,-3343.13,0.00011506,2]
[347839683,1736146263920,-500.0,0.00011506,2]
[347839684,1736146263930,-500.0,0.00011506,2]
[347839685,1736146263939,-500.0,0.00011506,2]
[347839686,1736146263949,-500.0,0.00011506,2]
[347839687,1736146263958,-500.0,0.00011506,2]
[347839688,1736146263968,-1000.0,0.00011506,2]
[347839689,1736146263977,-500.0,0.00011506,2]
[347839690,1736146263986,-507.32,0.00011506,2]
[347839691,1736146263996,-536.63,0.00011506,2]
[347839692,1736146264005,-500.0,0.00011506,2]
[347839693,1736146264015,-500.0,0.00011506,2]
[347839694,1736146264024,-500.0,0.00011506,2]
[347839695,1736146264033,-500.0,0.00011506,2]
[347839696,1736146264043,-500.0,0.00011506,2]
[347839697,1736146264053,-500.0,0.00011506,2]
[347839698,1736146264063,-1691.28,0.00011506,2]
[347839699,1736146264072,-568.75845394,0.00011506,2]
[347839700,1736146264082,-716.23,0.00011506,2]
[347839701,1736146264091,-500.0,0.00011506,2]
[347839702,1736146264101,-500.0,0.00011506,2]
[347839703,1736146264110,-602.7,0.00011506,2]
[347839704,1736146264120,-500.0,0.00011506,2]
[347839705,1736146264129,-500.0,0.00011506,2]
[347839706,1736146264139,-500.0,0.00011506,2]
[347839707,1736146264148,-709.13,0.00011506,2]
[347839708,1736146264158,-237.39,0.00011559,2]
[347839709,1736146264167,-1000.0,0.00011582,2]
[347839710,1736146264177,-700.0,0.000116,4]
[347839711,1736146264186,-205.0,0.0001164,2]
[347839712,1736146264195,-205.0,0.0001164,2]
[347839713,1736146264204,-202.0,0.0001164,2]
[347839714,1736146264214,-203.0,0.0001164,2]
[347839715,1736146264223,-202.0,0.0001164,2]
[347839716,1736146264233,-500.0,0.00011643,2]
[347839717,1736146264243,-500.0,0.00011643,2]
[347839718,1736146264252,-500.0,0.00011643,2]
[347839719,1736146264261,-500.0,0.00011643,2]
[347839720,1736146264270,-500.0,0.00011643,2]
[347839721,1736146264280,-589.2080332,0.00011643,2]
[347839722,1736146264290,-500.0,0.00011643,2]
[347839723,1736146264299,-500.0,0.00011643,2]
[347839724,1736146264309,-500.0,0.00011643,2]
[347839725,1736146264319,-500.0,0.00011643,2]
[347839726,1736146264328,-500.0,0.00011643,2]
[347839727,1736146264338,-500.0,0.00011643,2]
[347839728,1736146264348,-500.0,0.00011643,2]
[347839729,1736146264357,-500.0,0.00011643,2]
[347839730,1736146264367,-500.0,0.00011643,2]
[347839731,1736146264377,-500.0,0.00011643,2]
[347839732,1736146264386,-500.0,0.00011643,2]
[347839733,1736146264396,-500.0,0.00011643,2]
[347839734,1736146264406,-500.0,0.00011643,2]
[347839735,1736146264415,-500.0,0.00011643,2]
[347839736,1736146264425,-383.92329408,0.00011643,2]
[347839737,1736146264434,-500.0,0.00011643,2]
[347839738,1736146264444,-587.21,0.00011643,2]
[347839739,1736146264453,-500.0,0.00011643,2]
[347839740,1736146264463,-4772.46,0.00011643,2]
[347839741,1736146264473,-4343.04,0.00011643,2]
[347839742,1736146264482,-500.0,0.00011643,2]
[347839743,1736146264492,-500.0,0.00011643,2]
[347839744,1736146264502,-1700.1,0.00011643,2]
[347839745,1736146264511,-1677.41,0.00011643,2]
[347839746,1736146264520,-500.0,0.00011643,2]
[347839747,1736146264530,-1979.36,0.00011643,2]
[347839748,1736146264539,-500.0,0.00011643,2]
[347839749,1736146264548,-637.75,0.00011643,2]
[347839750,1736146264558,-2912.5,0.00011643,2]
[347839751,1736146264567,-2622.3,0.00011643,2]
[347839752,1736146264577,-500.0,0.00011643,2]
[347839753,1736146264587,-758.31,0.00011643,2]
[347839754,1736146264596,-360.53467264,0.00011643,2]
[347839755,1736146264606,-500.0,0.00011643,2]
[347839756,1736146264615,-500.0,0.00011643,2]
[347839757,1736146264625,-500.0,0.00011643,2]
[347839758,1736146264634,-500.0,0.00011643,2]
[347839759,1736146264643,-500.0,0.00011643,2]
[347839760,1736146264652,-500.0,0.00011677,2]
[347839761,1736146264663,-549.55280108,0.00011677,2]
[347839762,1736146264672,-500.0,0.00011677,2]
[347839763,1736146264681,-1107.86,0.00011677,2]
[347839764,1736146264691,-526.06,0.00011677,2]
[347839765,1736146264700,-4758.37,0.00011677,2]
[347839766,1736146264709,-500.0,0.00011677,2]
[347839767,1736146264719,-556.63,0.00011677,2]
[347839768,1736146264728,-515.40331169,0.00011677,2]
[347839769,1736146264737,-1493.4,0.00011677,2]
[347839770,1736146264747,-555.48666845,0.00011677,2]
[347839771,1736146264756,-2244.15,0.00011677,2]
[347839772,1736146264765,-632.11,0.00011677,2]
[347839773,1736146264774,-500.0,0.00011677,2]
[347839774,1736146264786,-500.0,0.00011677,2]
[347839775,1736146264796,-1083.83,0.00011677,2]
[347839776,1736146264806,-1023.4,0.00011677,2]
[347839777,1736146264816,-700.0,0.000117,4]
[347839778,1736146264826,-1937.0,0.000117,2]
[347839779,1736146264835,-205.0,0.0001176,2]
[347839780,1736146264844,-205.0,0.0001176,2]
[347839781,1736146264854,-202.0,0.0001176,2]
[347839782,1736146264864,-203.0,0.0001176,2]
[347839783,1736146264873,-202.0,0.0001176,2]
[347839784,1736146264883,-614.73173801,0.00011777,2]
[347839785,1736146264892,-1657.33,0.00011777,2]
[347839786,1736146264901,-500.0,0.00011777,2]
[347839787,1736146264911,-704.79,0.00011777,2]
[347839788,1736146264920,-500.0,0.00011778,2]
[347839789,1736146264929,-1019.75,0.00011778,2]
[347839790,1736146264939,-500.0,0.00011778,2]
[347839791,1736146264948,-500.0,0.00011778,2]
[347839792,1736146264957,-500.0,0.00011778,2]
[347839793,1736146264967,-1544.02,0.00011778,2]
[347839794,1736146264976,-500.0,0.00011778,2]
[347839795,1736146264985,-500.0,0.00011778,2]
[347839796,1736146264994,-500.0,0.00011778,2]
[347839797,1736146265003,-500.0,0.00011778,2]
[347839798,1736146265013,-500.0,0.00011778,2]
[347839799,1736146265022,-500.0,0.00011778,2]
[347839800,1736146265031,-500.0,0.00011778,2]
[347839801,1736146265041,-754.58,0.00011778,2]
[347839802,1736146265050,-500.0,0.00011778,2]
[347839803,1736146265059,-836.56,0.00011778,2]
[347839804,1736146265068,-1621.684072,0.00011778,2]
[347839805,1736146265077,-500.0,0.00011778,2]
[347839806,1736146265087,-157.403562,0.00011778,2]
[347839807,1736146265096,-500.0,0.00011778,2]
[347839808,1736146265105,-500.0,0.00011778,2]
[347839809,1736146265114,-500.0,0.00011778,2]
[347839810,1736146265123,-500.0,0.00011778,2]
[347839811,1736146265133,-1758.16002,0.00011778,2]
[347839812,1736146265143,-2716.93,0.00011778,2]
[347839813,1736146265152,-729.04,0.00011778,2]
[347839814,1736146265162,-193.62242165,0.00011778,2]
[347839815,1736146265171,-500.0,0.00011778,2]
[347839816,1736146265180,-500.0,0.00011778,2]
[347839817,1736146265190,-500.0,0.00011778,2]
[347839818,1736146265199,-509.36,0.00011778,2]
[347839819,1736146265209,-500.0,0.00011778,2]
[347839820,1736146265218,-500.0,0.00011778,2]
[347839821,1736146265227,-500.0,0.00011778,2]
[347839822,1736146265236,-250.27561508,0.00011778,2]
[347839823,1736146265246,-500.0,0.00011778,2]
[347839824,1736146265391,-500.0,0.00011778,2]
[347839825,1736146265402,-500.0,0.00011778,2]
[347839826,1736146265412,-500.0,0.00011778,2]
[347839827,1736146265422,-500.0,0.00011778,2]
[347839828,1736146265432,-500.0,0.00011778,2]
[347839829,1736146265441,-500.0,0.00011778,2]
[347839830,1736146265451,-500.0,0.00011778,2]
[347839831,1736146265460,-500.0,0.00011778,2]
[347839832,1736146265470,-1369.64,0.00011778,2]
[347839833,1736146265479,-500.0,0.00011778,2]
[347839834,1736146265489,-500.0,0.00011778,2]
[347839835,1736146265499,-500.0,0.00011778,2]
[347839836,1736146265508,-500.0,0.00011778,2]
[347839837,1736146265518,-500.0,0.00011778,2]
[347839838,1736146265527,-1238.2,0.00011778,2]
[347839839,1736146265537,-2225.72,0.00011778,2]
[347839840,1736146265548,-500.0,0.00011778,2]
[347839841,1736146265558,-500.0,0.00011778,2]
[347839842,1736146265568,-561.09,0.00011778,2]
[347839843,1736146265577,-845.21,0.00011778,2]
[347839844,1736146265587,-2383.62,0.00011778,2]
[347839845,1736146265596,-500.0,0.00011778,2]
[347839846,1736146265605,-500.0,0.00011778,2]
[347839847,1736146265615,-500.0,0.00011778,2]
[347839848,1736146265625,-500.0,0.00011778,2]
[347839849,1736146265635,-556.23,0.00011778,2]
[347839850,1736146265644,-500.0,0.00011778,2]
[347839851,1736146265654,-5872.59,0.00011778,2]
[347839852,1736146265663,-589.06,0.00011778,2]
[347839853,1736146265673,-500.0,0.00011778,2]
[347839854,1736146265682,-500.0,0.00011778,2]
[347839855,1736146265691,-673.64,0.00011778,2]
[347839856,1736146265700,-500.0,0.00011778,2]
[347839857,1736146265709,-500.0,0.00011778,2]
[347839858,1736146265719,-500.0,0.00011778,2]
[347839859,1736146265729,-490.21541516,0.00011778,2]
[347839860,1736146265738,-500.0,0.00011778,2]
[347839861,1736146265748,-500.0,0.00011778,2]
[347839862,1736146265758,-500.0,0.00011778,2]
[347839863,1736146265767,-500.0,0.00011778,2]
[347839864,1736146265778,-562.60895665,0.00011778,2]
[347839865,1736146265787,-500.0,0.00011778,2]
[347839866,1736146265797,-500.0,0.00011778,2]
[347839867,1736146265807,-433.047394,0.00011778,2]
[347839868,1736146265816,-535.2679218,0.00011778,2]
[347839869,1736146265826,-500.0,0.00011778,2]
[347839870,1736146265835,-2620.63,0.00011778,2]
[347839871,1736146265845,-515.0,0.00011778,2]
[347839872,1736146265855,-1465.5,0.00011778,2]
[347839873,1736146265864,-550.01531246,0.00011778,2]
[347839874,1736146265874,-500.0,0.00011778,2]
[347839875,1736146265883,-502.62,0.00011778,2]
[347839876,1736146265892,-500.0,0.00011778,2]
[347839877,1736146265902,-2213.07,0.00011778,2]
[347839878,1736146265911,-500.0,0.00011778,2]
[347839879,1736146265921,-500.0,0.00011778,2]
[347839880,1736146265931,-885.5,0.00011778,2]
[347839881,1736146265940,-3079.1,0.00011778,2]
[347839882,1736146265950,-500.0,0.00011778,2]
[347839883,1736146265960,-2813.28,0.00011778,2]
[347839884,1736146265969,-500.0,0.00011778,2]
[347839885,1736146265978,-500.0,0.00011778,2]
[347839886,1736146265987,-2437.82,0.00011778,2]
[347839887,1736146265996,-1353.21,0.00011778,2]
[347839888,1736146266005,-500.0,0.00011778,2]
[347839889,1736146266015,-500.0,0.00011778,2]
[347839890,1736146266024,-500.0,0.00011778,2]
[347839891,1736146266033,-500.0,0.00011778,2]
[347839892,1736146266042,-500.0,0.00011778,2]
[347839893,1736146266053,-1394.0,0.00011778,2]
[347839894,1736146266063,-950.57,0.00011778,2]
[347839895,1736146266072,-500.0,0.00011778,2]
[347839896,1736146266081,-500.0,0.00011778,2]
[347839897,1736146266090,-614.5,0.00011778,2]
[347839898,1736146266099,-589.55,0.00011778,2]
[347839899,1736146266108,-1036.35,0.00011779,2]
[347839900,1736146266117,-1081.26,0.00011779,2]
[347839901,1736146266126,-2048.23,0.00011779,2]
[347839902,1736146266136,-957.56,0.00011779,2]
[347839903,1736146266145,-1278.88,0.00011779,2]
[347839904,1736146266155,-644.36,0.00011779,2]
[347839905,1736146266164,-1260.55,0.00011779,2]
[347839906,1736146266173,-1543.55,0.00011779,2]
[347839907,1736146266182,-731.83,0.00011779,2]
[347839908,1736146266191,-1340.36,0.00011779,2]
[347839909,1736146266200,-1187.99,0.00011779,2]
[347839910,1736146266209,-2277.14,0.00011779,2]
[347839911,1736146266218,-1121.46,0.00011779,2]
[347839912,1736146266227,-815.01,0.00011779,2]
[347839913,1736146266236,-500.0,0.0001178,2]
[347839914,1736146266246,-576.01,0.0001178,2]
[347839915,1736146266255,-500.0,0.0001178,2]
[347839916,1736146266265,-500.0,0.0001178,2]
[347839917,1736146266274,-500.0,0.0001178,2]
[347839918,1736146266283,-768.67,0.0001178,2]
[347839919,1736146266292,-569.39,0.0001178,2]
[347839920,1736146266302,-700.11,0.0001178,2]
[347839921,1736146266311,-785.52,0.0001178,2]
[347839922,1736146266320,-500.0,0.0001178,2]
[347839923,1736146266330,-500.0,0.0001178,2]
[347839924,1736146266339,-500.0,0.0001178,2]
[347839925,1736146266348,-347.95411251,0.0001178,2]
[347839926,1736146266358,-500.0,0.0001178,2]
[347839927,1736146266368,-672.37,0.0001178,2]
[347839928,1736146266377,-500.0,0.0001178,2]
[347839929,1736146266386,-500.0,0.0001178,2]
[347839930,1736146266396,-3343.13,0.0001178,2]
[347839931,1736146266405,-500.0,0.0001178,2]
[347839932,1736146266415,-500.0,0.0001178,2]
[347839933,1736146266425,-500.0,0.0001178,2]
[347839934,1736146266434,-500.0,0.0001178,2]
[347839935,1736146266443,-500.0,0.0001178,2]
[347839936,1736146266451,-1000.0,0.0001178,2]
[347839937,1736146266461,-500.0,0.0001178,2]
[347839938,1736146266470,-507.32,0.0001178,2]
[347839939,1736146266480,-536.63,0.0001178,2]
[347839940,1736146266489,-500.0,0.0001178,2]
[347839941,1736146266499,-500.0,0.0001178,2]
[347839942,1736146266511,-500.0,0.0001178,2]
[347839943,1736146266520,-500.0,0.0001178,2]
[347839944,1736146266530,-500.0,0.0001178,2]
[347839945,1736146266539,-500.0,0.0001178,2]
[347839946,1736146266548,-1691.28,0.0001178,2]
[347839947,1736146266558,-716.23,0.0001178,2]
[347839948,1736146266567,-500.0,0.0001178,2]
[347839949,1736146266576,-500.0,0.0001178,2]
[347839950,1736146266585,-602.7,0.0001178,2]
[347839951,1736146266594,-500.0,0.0001178,2]
[347839952,1736146266604,-500.0,0.0001178,2]
[347839953,1736146266613,-500.0,0.0001178,2]
[347839954,1736146266622,-709.13,0.0001178,2]
[347839955,1736146266631,-500.0,0.00011799,2]
[347839956,1736146266641,-420.22812554,0.00011799,2]
[347839957,1736146266650,-15861.6733,0.000118,2]
[347839958,1736146266659,-500.0,0.000118,2]
[347839959,1736146266668,-150.0,0.000118,2]
[347839960,1736146266677,-150.0,0.000118,2]
[347839961,1736146266686,-150.0,0.000118,2]
[347839962,1736146266695,-12446.41670947,0.000118,2]
[347839963,1736146266705,-556.30158086,0.000118,2]
[347839964,1736146266714,-6012.57048419,0.000118,2]
[347839965,1736146266723,-44243.7871,0.000118,2]
[347839966,1736146266733,-90666.2245,0.000118,2]
[347839967,1736146266743,-21121.9054,0.000118,2]
[347839968,1736146266752,-1000.0,0.000118,2]
[347839969,1736146266762,-37106.5652,0.000118,2]
[347839970,1736146266771,-217.01,0.000118,9]
[347839971,1736146266783,-218.0,0.000118,7]
[347839972,1736146266792,-150.0,0.000118,2]
[347839973,1736146266803,-8828.67808294,0.000118,2]
[347839974,1736146266813,-1642.0,0.000118,4]
[347839975,1736146266823,-150.0,0.000118,2]
[347839976,1736146266833,-89721.42127797,0.000118,2]
[347839977,1736146266842,-205.0,0.0001188,2]
[347839978,1736146266851,-205.0,0.0001188,2]
[347839979,1736146266860,-202.0,0.0001188,2]
[347839980,1736146266870,-203.0,0.0001188,2]
[347839981,1736146266879,-202.0,0.0001188,2]
[347839982,1736146266888,-4907.0946,0.000119,2]
[347839983,1736146266897,-1512.29,0.000119,2]
[347839984,1736146266907,-1103.0,0.000119,2]
[347839985,1736146266916,-1103.0,0.000119,2]
[347839986,1736146266925,-1103.0,0.000119,2]
[347839987,1736146266935,-1103.0,0.000119,2]
[347839988,1736146266944,-1103.0,0.000119,2]
[347839989,1736146266953,-1103.0,0.000119,2]
[347839990,1736146266963,-1103.0,0.000119,2]
[347839991,1736146266973,-1103.0,0.000119,2]
[347839992,1736146266982,-1103.0,0.000119,2]
[347839993,1736146266991,-1103.0,0.000119,2]
[347839994,1736146267000,-500.0,0.00011917,2]
[347839995,1736146267009,-500.0,0.00011917,2]
[347839996,1736146267018,-500.0,0.00011917,2]
[347839997,1736146267027,-500.0,0.00011917,2]
[347839998,1736146267036,-343.17042124,0.00011917,2]
[347839999,1736146267045,-500.0,0.00011917,2]
[347840000,1736146267054,-500.0,0.00011917,2]
[347840001,1736146267064,-500.0,0.00011917,2]
[347840002,1736146267073,-414.62343423,0.00011917,2]
[347840003,1736146267082,-500.0,0.00011917,2]
[347840004,1736146267091,-500.0,0.00011917,2]
[347840005,1736146267100,-571.28984894,0.00011917,2]
[347840006,1736146267109,-500.0,0.00011917,2]
[347840007,1736146267118,-500.0,0.00011917,2]
[347840008,1736146267127,-500.0,0.00011917,2]
[347840009,1736146267135,-500.0,0.00011917,2]
[347840010,1736146267145,-500.0,0.00011917,2]
[347840011,1736146267154,-500.0,0.00011917,2]
[347840012,1736146267164,-500.0,0.00011917,2]
[347840013,1736146267173,-500.0,0.00011917,2]
[347840014,1736146267183,-587.21,0.00011917,2]